[Event "*** SCC Grand Prix: Titled Tuesday Blitz"]
[Site "Chess.com"]
[Date "2020.08.11"]
[Round "4"]
[White "Matveev_Vladimir"]
[Black "Ladislav1969"]
[Result "1-0"]
[WhiteElo "2644"]
[BlackElo "2336"]
[TimeControl "180+1"]
[EndTime "10:39:14 PDT"]
[Termination "Matveev_Vladimir won on time"]

1. d4 {[%clk 0:03:00.9]} 1... Nf6 {[%clk 0:02:59.5]} 2. c4 {[%clk 0:03:01]} 2...
g6 {[%clk 0:02:58]} 3. Nc3 {[%clk 0:03:00.8]} 3... d5 {[%clk 0:02:58.1]} 4. cxd5
{[%clk 0:03:01.7]} 4... Nxd5 {[%clk 0:02:58.2]} 5. e4 {[%clk 0:03:02.6]} 5...
Nxc3 {[%clk 0:02:58.4]} 6. bxc3 {[%clk 0:03:03.5]} 6... c5 {[%clk 0:02:58.8]} 7.
Bg5 {[%clk 0:03:03.4]} 7... cxd4 {[%clk 0:02:54.4]} 8. cxd4 {[%clk 0:03:03]}
8... Qa5+ {[%clk 0:02:52.9]} 9. Qd2 {[%clk 0:03:02.8]} 9... Qxd2+ {[%clk
0:02:52.3]} 10. Kxd2 {[%clk 0:03:02.1]} 10... Bg7 {[%clk 0:02:50.2]} 11. Rc1
{[%clk 0:03:01.6]} 11... Bd7 {[%clk 0:02:39.8]} 12. Nf3 {[%clk 0:02:57.6]} 12...
Nc6 {[%clk 0:02:21.9]} 13. d5 {[%clk 0:02:55.1]} 13... Nd4 {[%clk 0:02:11]} 14.
Bd3 {[%clk 0:02:19.1]} 14... Nxf3+ {[%clk 0:01:35.1]} 15. gxf3 {[%clk 0:02:20]}
15... Be5 {[%clk 0:01:18.8]} 16. Be3 {[%clk 0:01:24.8]} 16... b6 {[%clk
0:01:10.2]} 17. f4 {[%clk 0:01:21.4]} 17... Bd6 {[%clk 0:01:06.7]} 18. e5 {[%clk
0:01:19]} 18... Bb4+ {[%clk 0:01:05.7]} 19. Ke2 {[%clk 0:01:19.4]} 19... Rc8
{[%clk 0:00:28]} 20. Rxc8+ {[%clk 0:01:16.3]} 20... Bxc8 {[%clk 0:00:27.8]} 21.
Rc1 {[%clk 0:01:17.2]} 21... Kd8 {[%clk 0:00:24.1]} 22. h4 {[%clk 0:00:47.3]}
22... h6 {[%clk 0:00:23.3]} 23. f3 {[%clk 0:00:39.6]} 23... f6 {[%clk
0:00:20.3]} 24. Bxg6 {[%clk 0:00:33.2]} 24... Rg8 {[%clk 0:00:14.3]} 25. h5
{[%clk 0:00:32.9]} 25... f5 {[%clk 0:00:11.6]} 26. Kf2 {[%clk 0:00:23.8]} 26...
Bb7 {[%clk 0:00:08.3]} 27. Bxf5 {[%clk 0:00:22.2]} 27... Ba3 {[%clk 0:00:02.6]}
28. Rd1 {[%clk 0:00:21.1]} 28... Rf8 {[%clk 0:00:01.1]} 29. Be4 {[%clk
0:00:19.6]} 1-0

[Event "*** SCC Grand Prix: Titled Tuesday Blitz"]
[Site "Chess.com"]
[Date "2020.08.11"]
[Round "4"]
[White "MPGM"]
[Black "pirulillo"]
[Result "1-0"]
[WhiteElo "2465"]
[BlackElo "2228"]
[TimeControl "180+1"]
[EndTime "10:39:15 PDT"]
[Termination "MPGM won by checkmate"]

1. d4 {[%clk 0:02:53.4]} 1... Nf6 {[%clk 0:02:45.7]} 2. c4 {[%clk 0:02:53.2]}
2... g6 {[%clk 0:02:44.7]} 3. g3 {[%clk 0:02:53.5]} 3... Bg7 {[%clk 0:02:45.5]}
4. Bg2 {[%clk 0:02:54]} 4... O-O {[%clk 0:02:46.1]} 5. Nc3 {[%clk 0:02:54.6]}
5... d6 {[%clk 0:02:45.9]} 6. Nf3 {[%clk 0:02:54.8]} 6... Nbd7 {[%clk
0:02:45.4]} 7. O-O {[%clk 0:02:53.2]} 7... e5 {[%clk 0:02:45.9]} 8. e4 {[%clk
0:02:47.8]} 8... c6 {[%clk 0:02:44.9]} 9. dxe5 {[%clk 0:02:39.8]} 9... dxe5
{[%clk 0:02:44.7]} 10. Qc2 {[%clk 0:02:39.5]} 10... a5 {[%clk 0:02:43.3]} 11. h3
{[%clk 0:02:38.4]} 11... Qe7 {[%clk 0:02:43.2]} 12. Rd1 {[%clk 0:02:36]} 12...
Re8 {[%clk 0:02:42.8]} 13. Be3 {[%clk 0:02:32.3]} 13... Bf8 {[%clk 0:02:38.1]}
14. a3 {[%clk 0:02:22.9]} 14... Nc5 {[%clk 0:02:36.4]} 15. b4 {[%clk 0:02:18.3]}
15... axb4 {[%clk 0:02:34.7]} 16. axb4 {[%clk 0:02:19.2]} 16... Rxa1 {[%clk
0:02:34]} 17. Rxa1 {[%clk 0:02:19.9]} 17... Na6 {[%clk 0:02:30.5]} 18. b5 {[%clk
0:02:17.5]} 18... Nc5 {[%clk 0:02:27.8]} 19. Nd2 {[%clk 0:02:05.7]} 19... Qc7
{[%clk 0:02:12]} 20. Nb3 {[%clk 0:01:54.5]} 20... Nxb3 {[%clk 0:02:07.7]} 21.
Qxb3 {[%clk 0:01:55.4]} 21... Nd7 {[%clk 0:02:04.8]} 22. b6 {[%clk 0:01:42.8]}
22... Qb8 {[%clk 0:01:56.2]} 23. Na4 {[%clk 0:01:40.3]} 23... Bg7 {[%clk
0:01:43.4]} 24. c5 {[%clk 0:01:37.2]} 24... Nf8 {[%clk 0:01:43.3]} 25. Nb2
{[%clk 0:01:36.7]} 25... Ne6 {[%clk 0:01:38.2]} 26. Nc4 {[%clk 0:01:32.5]} 26...
Nd4 {[%clk 0:01:33.8]} 27. Qb2 {[%clk 0:01:30.4]} 27... Be6 {[%clk 0:01:32]} 28.
Nd6 {[%clk 0:01:30.1]} 28... Rd8 {[%clk 0:01:30]} 29. Ra7 {[%clk 0:01:22.7]}
29... Rxd6 {[%clk 0:01:26.4]} 30. cxd6 {[%clk 0:01:23.6]} 30... Nb5 {[%clk
0:01:26.3]} 31. Bc5 {[%clk 0:01:09.2]} 31... f6 {[%clk 0:01:19.2]} 32. Bf1
{[%clk 0:01:03.8]} 32... Nxd6 {[%clk 0:01:16.6]} 33. Bxd6 {[%clk 0:01:00.8]}
33... Qxd6 {[%clk 0:01:17.5]} 34. Rxb7 {[%clk 0:01:00.8]} 34... Qd1 {[%clk
0:01:10.6]} 35. Rb8+ {[%clk 0:00:45.2]} 35... Kf7 {[%clk 0:01:10.1]} 36. b7
{[%clk 0:00:40.9]} 36... Bc4 {[%clk 0:01:09.5]} 37. Rd8 {[%clk 0:00:25.5]} 37...
Qxf1+ {[%clk 0:01:03.8]} 38. Kh2 {[%clk 0:00:25.8]} 38... g5 {[%clk 0:00:52]}
39. b8=Q {[%clk 0:00:25]} 39... Be2 {[%clk 0:00:51]} 40. Rd7+ {[%clk 0:00:21.8]}
40... Kg6 {[%clk 0:00:47.9]} 41. Rxg7+ {[%clk 0:00:16]} 41... Kxg7 {[%clk
0:00:45.3]} 42. Q2b7+ {[%clk 0:00:16.1]} 42... Kh6 {[%clk 0:00:42.1]} 43. Qf8+
{[%clk 0:00:15.2]} 43... Kh5 {[%clk 0:00:43]} 44. Qbf7# {[%clk 0:00:13.1]} 1-0

[Event "*** SCC Grand Prix: Titled Tuesday Blitz"]
[Site "Chess.com"]
[Date "2020.08.11"]
[Round "4"]
[White "serena-maria"]
[Black "sorito"]
[Result "1/2-1/2"]
[WhiteElo "2285"]
[BlackElo "2470"]
[TimeControl "180+1"]
[EndTime "10:39:17 PDT"]
[Termination "Game drawn by repetition"]

1. Nf3 {[%clk 0:02:57.2]} 1... Nf6 {[%clk 0:02:57]} 2. g3 {[%clk 0:02:57.6]}
2... b6 {[%clk 0:02:56.8]} 3. Bg2 {[%clk 0:02:58.1]} 3... Bb7 {[%clk 0:02:57]}
4. O-O {[%clk 0:02:58.8]} 4... g6 {[%clk 0:02:57.5]} 5. c4 {[%clk 0:02:59.2]}
5... Bg7 {[%clk 0:02:57.7]} 6. Nc3 {[%clk 0:02:59.8]} 6... c5 {[%clk 0:02:57.9]}
7. Re1 {[%clk 0:02:59.8]} 7... d6 {[%clk 0:02:56.1]} 8. e4 {[%clk 0:02:59.9]}
8... Nbd7 {[%clk 0:02:56.1]} 9. d4 {[%clk 0:03:00.1]} 9... cxd4 {[%clk
0:02:56.3]} 10. Nxd4 {[%clk 0:03:01]} 10... Qc8 {[%clk 0:02:53.5]} 11. Be3
{[%clk 0:02:57.2]} 11... O-O {[%clk 0:02:52.8]} 12. Rc1 {[%clk 0:02:56.4]} 12...
a6 {[%clk 0:02:52.3]} 13. f4 {[%clk 0:02:40.2]} 13... e6 {[%clk 0:02:52]} 14. b3
{[%clk 0:02:35.4]} 14... Rd8 {[%clk 0:02:51.8]} 15. Bf2 {[%clk 0:02:34.8]} 15...
Qc7 {[%clk 0:02:50.8]} 16. g4 {[%clk 0:02:19.3]} 16... Rac8 {[%clk 0:02:50]} 17.
g5 {[%clk 0:02:19.2]} 17... Ne8 {[%clk 0:02:49.6]} 18. Qg4 {[%clk 0:02:08.9]}
18... Nf8 {[%clk 0:02:43.3]} 19. f5 {[%clk 0:01:36.4]} 19... Bxd4 {[%clk
0:02:19.3]} 20. Bxd4 {[%clk 0:01:32.9]} 20... e5 {[%clk 0:02:16.7]} 21. Bf2
{[%clk 0:01:30.2]} 21... Ng7 {[%clk 0:02:15.8]} 22. Be3 {[%clk 0:00:55.5]} 22...
Qd7 {[%clk 0:02:15.1]} 23. Rf1 {[%clk 0:00:50.5]} 23... b5 {[%clk 0:02:14.3]}
24. Nd5 {[%clk 0:00:45]} 24... Bxd5 {[%clk 0:02:13.8]} 25. cxd5 {[%clk
0:00:44.1]} 25... Rxc1 {[%clk 0:02:07.2]} 26. Rxc1 {[%clk 0:00:43.5]} 26... Rc8
{[%clk 0:02:07]} 27. h3 {[%clk 0:00:31.3]} 27... Rxc1+ {[%clk 0:02:04.8]} 28.
Bxc1 {[%clk 0:00:32]} 28... b4 {[%clk 0:01:51.5]} 29. f6 {[%clk 0:00:31]} 29...
Nh5 {[%clk 0:01:42.5]} 30. Qxd7 {[%clk 0:00:14]} 30... Nxd7 {[%clk 0:01:42.1]}
31. Bf3 {[%clk 0:00:11.8]} 31... Nf4 {[%clk 0:01:34.1]} 32. Bxf4 {[%clk
0:00:10.4]} 32... exf4 {[%clk 0:01:33.8]} 33. Be2 {[%clk 0:00:06.1]} 33... a5
{[%clk 0:01:33.7]} 34. Kf2 {[%clk 0:00:05.1]} 34... Ne5 {[%clk 0:01:33.9]} 35.
Bb5 {[%clk 0:00:04.3]} 35... h6 {[%clk 0:01:33.6]} 36. h4 {[%clk 0:00:04.3]}
36... hxg5 {[%clk 0:01:33.5]} 37. hxg5 {[%clk 0:00:05.2]} 37... Kf8 {[%clk
0:01:30.9]} 38. Ke2 {[%clk 0:00:05.3]} 38... Kg8 {[%clk 0:01:20.3]} 39. Kf2
{[%clk 0:00:05.1]} 39... Kf8 {[%clk 0:01:13.8]} 40. Ke2 {[%clk 0:00:05.3]} 40...
Kg8 {[%clk 0:00:45]} 41. Kf2 {[%clk 0:00:05.4]} 1/2-1/2

[Event "*** SCC Grand Prix: Titled Tuesday Blitz"]
[Site "Chess.com"]
[Date "2020.08.11"]
[Round "4"]
[White "Mikhail_Golubev"]
[Black "Batsai"]
[Result "1-0"]
[WhiteElo "2594"]
[BlackElo "2329"]
[TimeControl "180+1"]
[EndTime "10:39:19 PDT"]
[Termination "Mikhail_Golubev won by checkmate"]

1. e4 {[%clk 0:03:00.9]} 1... c5 {[%clk 0:02:59.7]} 2. Nf3 {[%clk 0:03:00.3]}
2... d6 {[%clk 0:02:59.3]} 3. d4 {[%clk 0:03:00.1]} 3... cxd4 {[%clk 0:03:00.2]}
4. Nxd4 {[%clk 0:03:00.4]} 4... Nf6 {[%clk 0:03:01.1]} 5. Nc3 {[%clk 0:03:00.6]}
5... a6 {[%clk 0:03:01.1]} 6. Bc4 {[%clk 0:03:00]} 6... Qc7 {[%clk 0:02:57.8]}
7. Bb3 {[%clk 0:02:57.9]} 7... Nbd7 {[%clk 0:02:57.9]} 8. O-O {[%clk 0:02:47.5]}
8... Nc5 {[%clk 0:02:57]} 9. Re1 {[%clk 0:02:46.4]} 9... e6 {[%clk 0:02:56]} 10.
Bg5 {[%clk 0:02:36.1]} 10... Be7 {[%clk 0:02:49.1]} 11. f4 {[%clk 0:02:28.3]}
11... h6 {[%clk 0:02:38.7]} 12. Bh4 {[%clk 0:02:18.8]} 12... g5 {[%clk
0:02:22.2]} 13. fxg5 {[%clk 0:02:12.5]} 13... Nh7 {[%clk 0:02:21.9]} 14. Nf5
{[%clk 0:01:43.6]} 14... exf5 {[%clk 0:02:01.4]} 15. Bxf7+ {[%clk 0:01:23]}
15... Kxf7 {[%clk 0:01:57.5]} 16. Qh5+ {[%clk 0:01:22.2]} 16... Kf8 {[%clk
0:01:48.8]} 17. Qxh6+ {[%clk 0:01:21]} 17... Kg8 {[%clk 0:01:41.7]} 18. Nd5
{[%clk 0:01:05.2]} 18... Qd8 {[%clk 0:01:41.1]} 19. exf5 {[%clk 0:00:51.4]}
19... Bxg5 {[%clk 0:01:22.3]} 20. Bxg5 {[%clk 0:00:34.2]} 20... Nxg5 {[%clk
0:01:12.4]} 21. Re8+ {[%clk 0:00:33.3]} 21... Qxe8 {[%clk 0:01:06]} 22. Qxg5+
{[%clk 0:00:26.1]} 22... Kf8 {[%clk 0:00:36.6]} 23. Qf6+ {[%clk 0:00:23.7]}
23... Kg8 {[%clk 0:00:36.6]} 24. Ne7+ {[%clk 0:00:23.1]} 24... Kh7 {[%clk
0:00:36.1]} 25. Qh4+ {[%clk 0:00:11.3]} 25... Kg7 {[%clk 0:00:35.7]} 26. Qg5+
{[%clk 0:00:10.4]} 26... Kf7 {[%clk 0:00:29.3]} 27. Re1 {[%clk 0:00:10]} 27...
Qf8 {[%clk 0:00:05.2]} 28. Qg6# {[%clk 0:00:09.1]} 1-0

[Event "*** SCC Grand Prix: Titled Tuesday Blitz"]
[Site "Chess.com"]
[Date "2020.08.11"]
[Round "4"]
[White "Barmen_EV"]
[Black "Meri-Arabidze"]
[Result "1-0"]
[WhiteElo "2424"]
[BlackElo "2600"]
[TimeControl "180+1"]
[EndTime "10:39:20 PDT"]
[Termination "Barmen_EV won on time"]

1. d4 {[%clk 0:03:00.9]} 1... d5 {[%clk 0:02:59.9]} 2. c4 {[%clk 0:03:00.9]}
2... dxc4 {[%clk 0:03:00.4]} 3. e4 {[%clk 0:03:00.6]} 3... e5 {[%clk 0:02:58.7]}
4. Nf3 {[%clk 0:03:00.7]} 4... exd4 {[%clk 0:02:59]} 5. Bxc4 {[%clk 0:03:00.8]}
5... Nc6 {[%clk 0:02:58.9]} 6. O-O {[%clk 0:02:59.8]} 6... Nf6 {[%clk 0:02:59]}
7. e5 {[%clk 0:02:57.9]} 7... Nd5 {[%clk 0:02:59.2]} 8. Nxd4 {[%clk 0:02:51.5]}
8... Nxd4 {[%clk 0:02:50.6]} 9. Qxd4 {[%clk 0:02:52.4]} 9... c6 {[%clk
0:02:50.9]} 10. Nc3 {[%clk 0:02:46.6]} 10... Be6 {[%clk 0:02:50.1]} 11. Nxd5
{[%clk 0:02:31]} 11... Bxd5 {[%clk 0:02:49.7]} 12. Bxd5 {[%clk 0:02:27.6]} 12...
Qxd5 {[%clk 0:02:49.9]} 13. Qxd5 {[%clk 0:02:26.9]} 13... cxd5 {[%clk
0:02:50.8]} 14. Rd1 {[%clk 0:02:27.8]} 14... O-O-O {[%clk 0:02:44.8]} 15. Be3
{[%clk 0:02:26.3]} 15... Kb8 {[%clk 0:02:43.4]} 16. Rd3 {[%clk 0:02:18.9]} 16...
Bb4 {[%clk 0:01:50.8]} 17. Rad1 {[%clk 0:02:13.4]} 17... Rc8 {[%clk 0:01:28.3]}
18. Rxd5 {[%clk 0:02:04.7]} 18... Rc2 {[%clk 0:01:27.9]} 19. a3 {[%clk
0:02:01.5]} 19... Be7 {[%clk 0:01:19.2]} 20. Rd7 {[%clk 0:01:59.4]} 20... Re8
{[%clk 0:01:18.6]} 21. b4 {[%clk 0:01:20.6]} 21... Ra2 {[%clk 0:01:18.2]} 22.
R7d3 {[%clk 0:00:58.9]} 22... Rc8 {[%clk 0:01:12.6]} 23. Kf1 {[%clk 0:00:52.2]}
23... h6 {[%clk 0:00:48.2]} 24. Rd7 {[%clk 0:00:48.9]} 24... Bg5 {[%clk
0:00:46.4]} 25. f4 {[%clk 0:00:46.4]} 25... Bh4 {[%clk 0:00:42.1]} 26. g3 {[%clk
0:00:46.2]} 26... Rxh2 {[%clk 0:00:26.1]} 27. gxh4 {[%clk 0:00:45.7]} 27... Rxh4
{[%clk 0:00:24.2]} 28. Rxf7 {[%clk 0:00:39.8]} 28... Rh1+ {[%clk 0:00:24.3]} 29.
Bg1 {[%clk 0:00:39.4]} 29... g5 {[%clk 0:00:18.3]} 30. e6 {[%clk 0:00:34]} 30...
gxf4 {[%clk 0:00:08]} 31. e7 {[%clk 0:00:31.9]} 31... Rg8 {[%clk 0:00:03.8]} 32.
Rd8+ {[%clk 0:00:29.1]} 1-0

[Event "*** SCC Grand Prix: Titled Tuesday Blitz"]
[Site "Chess.com"]
[Date "2020.08.11"]
[Round "4"]
[White "ShahMatKanal"]
[Black "queen_iryna"]
[Result "1-0"]
[WhiteElo "2450"]
[BlackElo "2249"]
[TimeControl "180+1"]
[EndTime "10:39:21 PDT"]
[Termination "ShahMatKanal won by resignation"]

1. d4 {[%clk 0:03:00.9]} 1... d6 {[%clk 0:02:58.4]} 2. Nc3 {[%clk 0:03:00.1]}
2... Nf6 {[%clk 0:02:56.1]} 3. e4 {[%clk 0:02:59.8]} 3... e5 {[%clk 0:02:55.3]}
4. Nf3 {[%clk 0:02:55.6]} 4... Nbd7 {[%clk 0:02:52.6]} 5. Bc4 {[%clk 0:02:48.9]}
5... Be7 {[%clk 0:02:51]} 6. O-O {[%clk 0:02:35.4]} 6... O-O {[%clk 0:02:47.4]}
7. h3 {[%clk 0:02:34.1]} 7... c6 {[%clk 0:02:43.8]} 8. a4 {[%clk 0:02:32.7]}
8... h6 {[%clk 0:02:41.8]} 9. a5 {[%clk 0:02:18]} 9... Re8 {[%clk 0:02:33.6]}
10. Re1 {[%clk 0:01:54]} 10... Bf8 {[%clk 0:02:32.8]} 11. d5 {[%clk 0:01:38.8]}
11... b5 {[%clk 0:02:31]} 12. Bf1 {[%clk 0:01:25.5]} 12... b4 {[%clk 0:02:22.6]}
13. dxc6 {[%clk 0:01:20.3]} 13... bxc3 {[%clk 0:02:22.2]} 14. cxd7 {[%clk
0:01:21.2]} 14... Bxd7 {[%clk 0:02:16.4]} 15. bxc3 {[%clk 0:01:12]} 15... Bc6
{[%clk 0:02:16.4]} 16. Bd3 {[%clk 0:01:02.5]} 16... d5 {[%clk 0:02:03.3]} 17.
exd5 {[%clk 0:01:01.8]} 17... Qxd5 {[%clk 0:02:02.9]} 18. c4 {[%clk 0:00:57.5]}
18... Qc5 {[%clk 0:01:27.6]} 19. Ba3 {[%clk 0:00:53.4]} 19... Bxf3 {[%clk
0:01:27.4]} 20. Qxf3 {[%clk 0:00:42.8]} 20... Qd4 {[%clk 0:01:21.9]} 21. Bxf8
{[%clk 0:00:22]} 21... Rxf8 {[%clk 0:01:22.8]} 22. Rad1 {[%clk 0:00:21]} 22...
Qc5 {[%clk 0:01:17.4]} 23. Qf5 {[%clk 0:00:20.6]} 23... Rfe8 {[%clk 0:01:10]}
24. g4 {[%clk 0:00:19.9]} 24... Qxa5 {[%clk 0:01:00.8]} 25. h4 {[%clk
0:00:19.8]} 25... Qb6 {[%clk 0:00:53.3]} 26. g5 {[%clk 0:00:19.5]} 26... g6
{[%clk 0:00:51.4]} 27. Qxf6 {[%clk 0:00:19.1]} 27... Re6 {[%clk 0:00:50.4]} 28.
Qf3 {[%clk 0:00:18.4]} 28... hxg5 {[%clk 0:00:49.9]} 29. Qxa8+ {[%clk
0:00:17.9]} 29... Kg7 {[%clk 0:00:50.8]} 30. hxg5 {[%clk 0:00:17.3]} 30... Rc6
{[%clk 0:00:46.6]} 31. Qe8 {[%clk 0:00:12.1]} 31... Re6 {[%clk 0:00:44.8]} 32.
Qc8 {[%clk 0:00:10.2]} 32... Qa5 {[%clk 0:00:44.1]} 33. Ra1 {[%clk 0:00:07.3]}
33... Qc3 {[%clk 0:00:43.2]} 34. Qc7 {[%clk 0:00:06.6]} 34... e4 {[%clk
0:00:43.1]} 35. Bxe4 {[%clk 0:00:05.6]} 35... Rxe4 {[%clk 0:00:42.9]} 36. Rxe4
{[%clk 0:00:05.8]} 36... Qxa1+ {[%clk 0:00:43]} 37. Kg2 {[%clk 0:00:06.2]} 37...
Qc3 {[%clk 0:00:41.6]} 38. Qe5+ {[%clk 0:00:06.4]} 38... Qxe5 {[%clk 0:00:41.8]}
39. Rxe5 {[%clk 0:00:07.3]} 1-0

[Event "*** SCC Grand Prix: Titled Tuesday Blitz"]
[Site "Chess.com"]
[Date "2020.08.11"]
[Round "4"]
[White "Kavyev_Ruslan"]
[Black "Fighterman91"]
[Result "0-1"]
[WhiteElo "2451"]
[BlackElo "2627"]
[TimeControl "180+1"]
[EndTime "10:39:22 PDT"]
[Termination "Fighterman91 won by resignation"]

1. d4 {[%clk 0:03:00.9]} 1... Nf6 {[%clk 0:03:00.4]} 2. c4 {[%clk 0:03:00.7]}
2... g6 {[%clk 0:03:00.9]} 3. Nc3 {[%clk 0:02:59.7]} 3... d5 {[%clk 0:03:01.4]}
4. Bf4 {[%clk 0:02:59.5]} 4... Bg7 {[%clk 0:03:01.4]} 5. e3 {[%clk 0:03:00]}
5... c5 {[%clk 0:02:57.9]} 6. dxc5 {[%clk 0:03:00.9]} 6... Qa5 {[%clk
0:02:57.9]} 7. Rc1 {[%clk 0:02:55.8]} 7... Ne4 {[%clk 0:02:35.1]} 8. Ne2 {[%clk
0:02:55.2]} 8... dxc4 {[%clk 0:02:24.1]} 9. f3 {[%clk 0:02:50.8]} 9... Nxc5
{[%clk 0:02:18.5]} 10. Ng3 {[%clk 0:02:00.8]} 10... Be6 {[%clk 0:01:39.1]} 11.
e4 {[%clk 0:01:55.9]} 11... O-O {[%clk 0:01:37.1]} 12. Be2 {[%clk 0:01:56.2]}
12... Rd8 {[%clk 0:01:37]} 13. Qc2 {[%clk 0:01:56.3]} 13... Nd3+ {[%clk
0:01:37.1]} 14. Bxd3 {[%clk 0:01:56.1]} 14... cxd3 {[%clk 0:01:37.9]} 15. Qd2
{[%clk 0:01:55.9]} 15... Nc6 {[%clk 0:01:32]} 16. O-O {[%clk 0:01:55.7]} 16...
Bxa2 {[%clk 0:01:16]} 17. Ra1 {[%clk 0:01:49.7]} 17... Qb6+ {[%clk 0:01:12.8]}
18. Be3 {[%clk 0:01:48.9]} 18... Bd4 {[%clk 0:01:12.7]} 19. Bxd4 {[%clk
0:01:42.2]} 19... Nxd4 {[%clk 0:01:02]} 20. Qf2 {[%clk 0:01:38]} 20... Bc4
{[%clk 0:00:51.8]} 21. Rfd1 {[%clk 0:01:33.5]} 21... Nb3 {[%clk 0:00:24.5]} 22.
Rab1 {[%clk 0:01:31.3]} 22... Qxf2+ {[%clk 0:00:24.2]} 23. Kxf2 {[%clk
0:01:31.4]} 23... d2 {[%clk 0:00:23.9]} 24. Nd5 {[%clk 0:01:11.1]} 24... Bxd5
{[%clk 0:00:23.3]} 25. exd5 {[%clk 0:01:11.4]} 25... Rxd5 {[%clk 0:00:23.5]} 26.
Ne4 {[%clk 0:01:11.8]} 26... Rad8 {[%clk 0:00:21.7]} 27. Ke2 {[%clk 0:01:12.2]}
27... b5 {[%clk 0:00:19.6]} 28. Nc3 {[%clk 0:01:11.9]} 28... Re5+ {[%clk
0:00:19.8]} 29. Kf2 {[%clk 0:01:11.9]} 29... b4 {[%clk 0:00:20.1]} 30. Ne4
{[%clk 0:01:11.2]} 30... f5 {[%clk 0:00:19.8]} 31. Ng3 {[%clk 0:01:11.2]} 31...
Red5 {[%clk 0:00:18.4]} 32. Nf1 {[%clk 0:01:10.3]} 32... f4 {[%clk 0:00:17.5]}
33. Ke2 {[%clk 0:01:10.5]} 33... e5 {[%clk 0:00:16.8]} 34. g3 {[%clk 0:01:10.8]}
34... g5 {[%clk 0:00:16.6]} 35. Kf2 {[%clk 0:01:08.8]} 35... a5 {[%clk
0:00:16.4]} 36. Ke2 {[%clk 0:01:09.3]} 36... a4 {[%clk 0:00:16.5]} 37. Kf2
{[%clk 0:01:09.4]} 37... Kf7 {[%clk 0:00:17]} 38. Ke2 {[%clk 0:01:09.8]} 38...
Kf6 {[%clk 0:00:17.5]} 39. Kf2 {[%clk 0:01:10.4]} 39... h5 {[%clk 0:00:18]} 40.
Ke2 {[%clk 0:01:10.9]} 40... g4 {[%clk 0:00:18]} 41. Kf2 {[%clk 0:01:10.4]}
41... Rd3 {[%clk 0:00:17.7]} 42. fxg4 {[%clk 0:01:09.9]} 42... hxg4 {[%clk
0:00:18.3]} 43. gxf4 {[%clk 0:01:10.5]} 43... exf4 {[%clk 0:00:18.7]} 44. Ke2
{[%clk 0:01:11.1]} 44... Kg5 {[%clk 0:00:15]} 45. Kf2 {[%clk 0:01:11.3]} 45...
Kh4 {[%clk 0:00:15.1]} 46. Ke2 {[%clk 0:01:11.6]} 46... R3d4 {[%clk 0:00:13.7]}
47. Kf2 {[%clk 0:01:11.4]} 47... R8d6 {[%clk 0:00:13.1]} 48. Ke2 {[%clk
0:01:11.7]} 48... Nc1+ {[%clk 0:00:10.3]} 49. Kf2 {[%clk 0:01:11.3]} 49... b3
{[%clk 0:00:10.5]} 50. Ra1 {[%clk 0:01:05.6]} 50... Nd3+ {[%clk 0:00:10.8]} 51.
Ke2 {[%clk 0:01:05.3]} 51... Re4+ {[%clk 0:00:10.7]} 0-1

[Event "*** SCC Grand Prix: Titled Tuesday Blitz"]
[Site "Chess.com"]
[Date "2020.08.11"]
[Round "4"]
[White "mfwagnerpeixoto"]
[Black "okriak"]
[Result "0-1"]
[WhiteElo "2288"]
[BlackElo "2766"]
[TimeControl "180+1"]
[EndTime "10:39:23 PDT"]
[Termination "okriak won by resignation"]

1. d4 {[%clk 0:03:00.9]} 1... d6 {[%clk 0:02:59]} 2. Nf3 {[%clk 0:03:01.8]} 2...
Bg4 {[%clk 0:02:58]} 3. c4 {[%clk 0:02:58.4]} 3... Bxf3 {[%clk 0:02:57.3]} 4.
exf3 {[%clk 0:02:59.3]} 4... c6 {[%clk 0:02:57.7]} 5. Nc3 {[%clk 0:02:58.9]}
5... Nf6 {[%clk 0:02:57.5]} 6. Bd3 {[%clk 0:02:57.3]} 6... d5 {[%clk 0:02:57.5]}
7. cxd5 {[%clk 0:02:56]} 7... Nxd5 {[%clk 0:02:56.9]} 8. Nxd5 {[%clk 0:02:54.2]}
8... Qxd5 {[%clk 0:02:54]} 9. Be4 {[%clk 0:02:52.5]} 9... Qa5+ {[%clk
0:02:51.7]} 10. Bd2 {[%clk 0:02:51.4]} 10... Qb6 {[%clk 0:02:51.7]} 11. Bc3
{[%clk 0:02:51.2]} 11... e6 {[%clk 0:02:49.3]} 12. O-O {[%clk 0:02:48.3]} 12...
Nd7 {[%clk 0:02:46.9]} 13. Re1 {[%clk 0:02:39.5]} 13... Be7 {[%clk 0:02:43.8]}
14. d5 {[%clk 0:02:16.6]} 14... cxd5 {[%clk 0:02:40.3]} 15. Bxd5 {[%clk
0:02:16]} 15... Bf6 {[%clk 0:02:04.7]} 16. Qa4 {[%clk 0:01:50.6]} 16... Bxc3
{[%clk 0:01:59.2]} 17. bxc3 {[%clk 0:01:39.9]} 17... Rb8 {[%clk 0:00:58.9]} 18.
Rad1 {[%clk 0:01:16.8]} 18... Rd8 {[%clk 0:00:42.9]} 19. Rb1 {[%clk 0:01:09.3]}
19... Qc5 {[%clk 0:00:42.5]} 20. Bxe6 {[%clk 0:00:31.1]} 20... fxe6 {[%clk
0:00:37.4]} 21. Rxe6+ {[%clk 0:00:32]} 21... Kf7 {[%clk 0:00:37.3]} 22. Qb3
{[%clk 0:00:21.9]} 22... Kf8 {[%clk 0:00:31.5]} 23. Qxb7 {[%clk 0:00:17.6]}
23... h5 {[%clk 0:00:26.5]} 24. Rb5 {[%clk 0:00:12.2]} 24... Qxc3 {[%clk
0:00:24.5]} 25. Rf5+ {[%clk 0:00:11.6]} 25... Kg8 {[%clk 0:00:24.6]} 26. g3
{[%clk 0:00:11.4]} 26... h4 {[%clk 0:00:23.8]} 27. Qe4 {[%clk 0:00:09.9]} 27...
Qc1+ {[%clk 0:00:22]} 28. Qe1 {[%clk 0:00:07.8]} 28... Qxe1+ {[%clk 0:00:22.1]}
29. Rxe1 {[%clk 0:00:08.1]} 29... hxg3 {[%clk 0:00:21.8]} 30. fxg3 {[%clk
0:00:09]} 30... Nf6 {[%clk 0:00:21.6]} 31. Re2 {[%clk 0:00:07.8]} 31... Rd7
{[%clk 0:00:21.2]} 32. Ra5 {[%clk 0:00:07.5]} 32... Kf7 {[%clk 0:00:21]} 33. Kg2
{[%clk 0:00:07.9]} 33... Rhd8 {[%clk 0:00:20.5]} 0-1